bitfinex/quotes_ETHUSD_20250217
["timestamp","ask_amount","ask_price","bid_price","bid_amount"]
[1739772340726,0.8523,2683.5,2682.9,3.72728]
[1739772340925,0.1203354,2683.3,2682.6,0.55]
[1739772341123,0.8523,2683.5,2682.8,3.72736]
[1739772341335,0.1203354,2683.2,2683.0,3.72713]
[1739772341515,0.5693,2683.5,2682.8,3.72737]
[1739772341717,0.1203354,2683.1,2682.8,3.72737]
[1739772341916,0.284,2683.3,2683.0,3.72717]
[1739772342144,0.284,2683.3,2683.1,3.72696]
[1739772342350,0.284,2683.3,2682.8,3.72739]
[1739772342544,0.5693,2683.5,2682.8,4.175449]
[1739772342848,0.8533,2683.5,2682.9,3.72724]
[1739772343087,0.1203354,2683.4,2682.9,3.7272]
[1739772343246,0.1203354,2683.4,2683.0,3.72716]
[1739772343564,0.8533,2683.5,2683.0,3.72708]
[1739772343764,0.8533,2683.5,2682.9,3.72729]
[1739772344073,0.1203354,2683.4,2682.8,3.72741]
[1739772344451,0.284,2683.5,2682.6,3.72764]
[1739772344654,0.5693,2683.4,2682.6,4.100404]
[1739772344961,0.1203354,2683.3,2682.8,3.72741]
[1739772345156,0.5693,2683.4,2682.6,4.100384]
[1739772345356,0.5693,2683.4,2681.7,0.7505]
[1739772345557,0.1203354,2683.3,2682.5,3.72777]
[1739772345764,0.1203354,2683.3,2682.6,3.72771]
[1739772346282,0.1203354,2683.3,2682.5,3.72777]
[1739772347577,0.5693,2683.0,2682.3,4.100811]
[1739772347950,0.5693,2683.0,2682.3,0.372801]
[1739772348153,0.5693,2683.0,2682.3,4.100891]
[1739772348392,0.5693,2683.0,2682.3,0.372801]
[1739772348888,0.5693,2683.0,2682.0,0.89953724]
[1739772348889,0.5693,2683.0,2682.0,3.88892395]
[1739772349188,0.11897508,2682.9,2682.0,0.16049395]
[1739772349350,0.11897508,2682.9,2682.1,3.72842]
[1739772349549,0.11897508,2682.9,2682.4,3.72796]
[1739772349754,0.11897508,2682.9,2682.3,3.72805]
[1739772350156,0.283,2682.8,2682.3,4.100825]
[1739772350352,0.11897508,2682.9,2682.3,0.372805]
[1739772350598,0.5693,2683.0,2682.3,3.72812]
[1739772351013,0.11867765,2682.9,2682.1,3.72832]
[1739772351247,0.5693,2682.8,2682.2,3.72824]
[1739772351446,0.5693,2682.8,2682.0,4.43898395]
[1739772351649,0.5693,2682.8,2682.2,3.72819]
[1739772351848,0.5693,2682.8,2682.7,3.72758]
[1739772352150,0.5693,2682.8,2682.4,3.7279]
[1739772352358,0.68797765,2682.8,2682.4,3.7279]
[1739772353159,0.68797765,2682.8,2682.2,3.72819]
[1739772353360,0.5693,2682.8,2682.2,3.72819]
[1739772353552,0.11867765,2682.7,2682.0,3.88894395]
[1739772353704,0.11867765,2682.7,2682.2,3.72827]
[1739772353898,0.11867765,2682.7,2682.0,4.27783835]
[1739772354241,0.5693,2682.6,2682.0,3.88894395]
[1739772354442,0.5693,2682.6,2682.1,3.72833]
[1739772354620,0.5693,2682.6,2682.0,3.88894395]
[1739772354814,0.5693,2682.6,2682.0,0.16049395]
[1739772355015,0.5693,2682.4,2682.0,0.16049395]
[1739772355264,0.283,2682.3,2682.0,0.16049395]
[1739772355566,0.11867765,2682.2,2682.0,0.16049395]
[1739772355710,0.283,2682.3,2682.0,0.16049395]
[1739772355909,0.11755085,2682.2,2682.0,0.16049395]
[1739772356130,0.5693,2682.1,2682.0,0.16049395]
[1739772356347,0.5693,2682.1,2682.0,3.88905395]
[1739772356348,0.68676068,2682.1,2682.0,3.88905395]
[1739772356549,0.5693,2682.1,2682.0,3.88905395]
[1739772356710,0.5693,2682.1,2682.0,0.16049395]
[1739772358564,0.68676068,2682.1,2682.0,0.16049395]
[1739772360330,0.5693,2682.1,2682.0,0.16049395]
[1739772361813,0.5693,2682.1,2682.0,3.88905395]
[1739772361814,0.11746068,2682.1,2682.0,3.88905395]
[1739772362150,0.5693,2682.4,2682.3,3.72814]
[1739772362737,0.282,2682.8,2682.5,3.72774]
[1739772363119,0.5693,2682.7,2682.1,3.72842]
[1739772363451,0.5693,2682.7,2682.0,0.54939935]
[1739772363658,0.5693,2682.7,2682.0,0.16049395]
[1739772364145,0.5693,2682.5,2682.0,0.16049395]
[1739772367434,0.5693,2682.5,2681.6,3.72907]
[1739772367642,0.5693,2682.5,2681.2,0.76005615]
[1739772367643,0.5693,2682.5,2681.7,3.72888]
[1739772367959,0.5693,2682.5,2681.6,3.72911]
[1739772368519,0.5693,2682.5,2681.5,3.72916]
[1739772368918,0.5693,2682.5,2681.7,3.7289]
[1739772369123,0.5693,2682.5,2681.7,3.72895]
[1739772369351,0.5693,2682.5,2681.7,3.72889]
[1739772369590,0.5693,2682.5,2681.2,0.76005615]
[1739772369591,0.5693,2682.5,2681.5,3.72918]
[1739772369794,0.5693,2682.5,2681.5,3.72917]
[1739772370271,0.5693,2682.5,2681.3,3.72942]
[1739772370470,0.5693,2682.5,2681.5,3.72923]
[1739772370868,0.5693,2682.5,2681.3,3.72942]
[1739772370869,0.5693,2682.5,2681.1,0.7785]
[1739772371069,0.5693,2682.5,2681.5,3.72913]
[1739772371789,0.5693,2682.5,2681.5,3.72916]
[1739772371979,0.5693,2682.5,2681.4,3.72936]
[1739772372180,0.5693,2682.3,2681.5,3.72912]
[1739772372687,0.5693,2682.3,2681.1,1.52257384]
[1739772372858,0.5693,2682.1,2681.4,3.72927]
[1739772373052,0.28,2682.0,2681.2,3.72959]
[1739772373285,0.5693,2681.9,2681.2,3.7296]
[1739772373455,0.68609335,2681.9,2681.2,3.7296]
[1739772373651,0.68609335,2681.9,2681.2,3.72956]
[1739772373854,0.68609335,2681.9,2681.0,7.45967]
[1739772374055,0.68609335,2681.9,2680.7,1.3572]
[1739772374292,0.68609335,2681.9,2681.3,3.72951]
[1739772374479,0.68609335,2681.9,2681.4,3.72939]
[1739772374685,0.68609335,2681.9,2680.9,4.47246324]
[1739772374991,0.68609335,2681.9,2681.7,3.72886]
[1739772375502,0.68609335,2681.9,2681.5,3.72915]
[1739772375695,0.68609335,2681.9,2681.6,3.72904]
[1739772375993,0.68609335,2681.9,2681.5,3.72912]
[1739772376189,0.68609335,2681.9,2681.3,3.72939]
[1739772376369,0.68609335,2681.9,2681.4,3.72928]
[1739772376570,0.68609335,2681.9,2681.3,3.72939]
[1739772376772,0.68609335,2681.9,2681.1,3.72977]
[1739772376976,0.5693,2681.7,2680.7,1.3572]
[1739772377325,0.5693,2681.7,2681.2,3.72962]
[1739772377615,0.11619801,2681.6,2681.2,3.72962]
[1739772377929,0.11619801,2681.6,2681.0,3.72981]
[1739772378268,0.11619801,2681.6,2681.1,3.72973]
[1739772378665,0.5693,2681.5,2681.1,3.72973]
[1739772378983,0.5693,2681.5,2680.7,1.57238322]
[1739772379328,0.5693,2681.5,2681.1,3.72969]
[1739772379819,0.11619801,2681.4,2680.7,0.8072]
[1739772380027,0.11619801,2681.4,2681.0,3.72985]
[1739772380168,0.5693,2681.5,2681.1,3.72981]
[1739772380538,0.5693,2681.5,2681.2,3.72958]
[1739772381116,0.5693,2681.5,2681.3,3.72951]
[1739772381327,0.5693,2681.5,2681.1,3.7298]
[1739772381801,0.5693,2681.5,2681.2,3.72957]
[1739772382011,0.5693,2681.5,2681.0,3.72986]
[1739772382711,0.5693,2681.5,2680.8,3.73014]
[1739772382934,0.5693,2681.5,2680.8,7.46027]
[1739772383213,0.5693,2681.4,2680.7,3.73025]
[1739772383502,0.68549801,2681.4,2680.9,3.73007]
[1739772383881,0.68549801,2681.4,2680.7,3.73036]
[1739772384206,0.68549801,2681.4,2681.1,3.72978]
[1739772384410,0.68549801,2681.4,2680.9,3.72998]
[1739772384573,0.68549801,2681.4,2681.0,3.72983]
[1739772384907,0.68549801,2681.4,2680.9,3.72998]
[1739772385467,0.68549801,2681.4,2681.0,3.72994]
[1739772385673,0.68549801,2681.4,2680.9,3.72998]
[1739772386010,0.68549801,2681.4,2680.8,3.73022]
[1739772386200,0.68549801,2681.4,2680.7,3.73027]
[1739772386399,0.68549801,2681.4,2680.8,3.73022]
[1739772386910,0.68549801,2681.4,2680.7,7.46055]
[1739772387086,0.68549801,2681.4,2680.7,3.73027]
[1739772387289,0.5693,2681.4,2680.7,3.73027]
[1739772387601,0.5693,2681.4,2680.8,3.73022]
[1739772387773,0.5693,2681.4,2680.8,3.73014]
[1739772387976,0.11581001,2681.3,2680.4,5.82649275]
[1739772388207,0.278,2681.2,2680.9,3.73006]
[1739772388414,0.278,2681.2,2681.1,3.72981]
[1739772388574,0.278,2681.2,2681.0,3.72984]
[1739772388776,0.278,2681.2,2681.0,3.72991]
[1739772388989,0.278,2681.2,2680.6,3.73045]
[1739772389189,0.278,2681.2,2681.0,3.72986]
[1739772389401,0.278,2681.2,2680.8,3.73012]
[1739772391007,0.278,2681.2,2680.9,3.73001]
[1739772391214,0.278,2681.2,2680.5,0.94105621]
[1739772391409,0.5693,2681.4,2680.5,0.94105621]
[1739772391608,0.278,2681.3,2680.8,3.7301]
[1739772392233,0.278,2681.3,2680.6,0.5486799]
[1739772392587,0.278,2681.3,2680.8,3.73014]
[1739772392813,0.278,2681.3,2680.9,3.73006]
[1739772393636,0.278,2681.3,2681.0,3.72989]
[1739772394419,0.278,2681.3,2680.8,3.73009]
[1739772394617,0.278,2681.3,2680.9,3.72999]
[1739772394831,0.5693,2681.4,2681.3,3.72953]
[1739772394983,0.11581001,2681.2,2680.9,0.372999]
[1739772395199,0.8463,2681.4,2681.2,3.72961]
[1739772395693,0.8463,2681.4,2681.2,3.72958]
[1739772395898,0.8463,2681.4,2681.2,7.45915]
[1739772396105,0.8463,2681.4,2681.3,3.72953]
[1739772397084,0.277,2681.6,2681.3,0.74591]
[1739772397315,0.277,2681.6,2681.5,3.72925]
[1739772397912,0.5693,2681.9,2681.8,3.72883]
[1739772398113,0.277,2682.0,2681.9,3.72869]
[1739772398709,0.5693,2682.2,2681.9,3.72869]
[1739772399012,0.8463,2682.2,2682.0,3.72851]
[1739772399208,0.8463,2682.2,2681.9,3.72869]
[1739772399419,0.8463,2682.2,2681.9,7.45738]
[1739772399592,0.8463,2682.2,2681.5,3.72925]
[1739772399797,0.8463,2682.2,2682.0,7.45698]
[1739772400009,0.8463,2682.2,2682.1,3.72842]
[1739772400325,0.277,2682.3,2682.2,3.72828]
[1739772400690,0.5693,2682.4,2682.2,3.72828]
[1739772401015,10.589,2683.4,2682.2,3.72828]
[1739772401016,0.5693,2683.0,2682.2,0.74567]
[1739772401203,0.277,2682.9,2682.5,3.72785]
[1739772401399,0.277,2682.9,2682.6,3.72763]
[1739772403114,0.277,2682.9,2682.7,3.72757]
[1739772403316,0.277,2682.9,2682.4,3.72798]
[1739772403627,0.11682942,2682.8,2682.7,3.72758]
[1739772405519,0.11682942,2682.8,2682.7,4.473109]
[1739772405950,0.276,2683.1,2683.0,3.72717]
[1739772406139,0.276,2683.1,2682.8,3.72742]
[1739772406345,0.39341553,2683.1,2682.8,3.72742]
[1739772406650,0.39341553,2683.1,2682.9,3.72729]
[1739772406913,0.39341553,2683.1,2683.0,3.72717]
[1739772408363,0.11741553,2683.1,2683.0,3.72717]
[1739772408740,0.11741553,2683.1,2682.9,3.72729]
[1739772408949,0.11741553,2683.1,2683.0,3.72717]
[1739772409461,0.8453,2683.2,2682.9,3.72729]
[1739772409663,0.8453,2683.2,2683.1,3.72703]
[1739772410043,0.5693,2683.6,2683.2,3.72686]
[1739772410262,0.276,2683.5,2683.2,3.72686]
[1739772410936,0.276,2683.5,2683.1,3.72701]
[1739772411531,0.276,2683.5,2683.0,3.72708]
[1739772411925,0.276,2683.5,2683.1,3.72702]
[1739772412345,0.276,2683.5,2683.2,3.72687]
[1739772412558,0.5693,2683.6,2683.3,3.72667]
[1739772412831,0.276,2683.5,2683.4,3.72652]
[1739772413241,0.0830377,2683.8,2683.6,3.72633]
[1739772413467,0.276,2683.7,2683.6,3.72633]
[1739772413838,0.0830377,2683.8,2683.7,3.72619]
[1739772417466,0.20129176,2683.8,2683.7,3.72619]
[1739772418933,0.20129176,2683.8,2683.4,4.471829]
[1739772419133,0.20129176,2683.8,2683.5,3.72637]
[1739772420026,0.20129176,2683.8,2683.3,3.72667]
[1739772420231,0.5693,2683.7,2683.0,3.72708]
[1739772420531,0.68825694,2683.7,2683.0,7.45417]
[1739772420732,0.68825694,2683.7,2683.0,3.72708]
[1739772421173,0.68825694,2683.7,2682.8,3.72735]
[1739772421536,0.68825694,2683.7,2682.9,3.72722]
[1739772422296,0.68825694,2683.7,2683.1,3.72697]
[1739772422579,0.68825694,2683.7,2683.2,3.72679]
[1739772422781,0.68825694,2683.7,2683.5,3.72641]
[1739772422978,0.11895694,2683.7,2683.5,3.72641]
[1739772423189,0.0830377,2683.8,2683.6,3.72633]
[1739772423482,0.11857855,2683.7,2683.6,3.72633]
[1739772423677,0.0830377,2683.8,2683.7,3.72619]
[1739772425343,0.0830377,2683.8,2683.7,4.471441]
[1739772425548,0.0830377,2683.8,2683.7,7.471441]
[1739772425749,0.0830377,2683.8,2683.7,8.262541]
[1739772426845,0.0830377,2683.8,2683.7,8.812541]
[1739772429289,7.7e-06,2683.8,2683.7,8.812541]
[1739772432661,7.7e-06,2683.8,2683.7,9.00038872]
[1739772434492,7.7e-06,2683.8,2683.7,9.55347138]
[1739772434790,7.7e-06,2683.8,2683.7,9.00038872]
[1739772435329,7.7e-06,2683.8,2683.7,9.55347138]
[1739772436534,7.7e-06,2683.8,2683.7,9.00038872]
[1739772441496,7.7e-06,2683.8,2683.7,8.45038872]
[1739772443053,7.7e-06,2683.8,2683.7,7.471441]
[1739772443215,7.7e-06,2683.8,2683.7,4.471441]
[1739772444935,7.7e-06,2683.8,2683.7,3.72619]
[1739772447055,7.7e-06,2683.8,2683.6,3.72632]
[1739772447351,0.5693,2683.7,2683.6,7.45249]
[1739772448051,0.5693,2683.7,2683.5,3.72647]
[1739772448352,0.5693,2683.7,2683.6,3.72633]
[1739772448927,7.7e-06,2683.8,2683.7,3.72619]
[1739772449462,7.7e-06,2683.8,2683.7,4.844088]
[1739772450352,7.7e-06,2683.8,2683.7,7.34751473]
[1739772450570,7.7e-06,2683.8,2683.7,10.89751473]
[1739772450748,7.7e-06,2683.8,2683.7,12.40813432]
[1739772453431,7.7e-06,2683.8,2683.7,12.96121698]
[1739772454043,7.7e-06,2683.8,2683.7,12.40813432]
[1739772454255,7.7e-06,2683.8,2683.7,14.39422675]
[1739772455657,7.7e-06,2683.8,2683.7,14.58182675]
[1739772456943,7.7e-06,2683.8,2683.7,11.03182675]
[1739772457122,7.7e-06,2683.8,2683.7,8.06013432]
[1739772457557,7.7e-06,2683.8,2683.7,3.72619]
[1739772462162,7.7e-06,2683.8,2683.7,7.31025932]
[1739772462359,7.7e-06,2683.8,2683.7,7.34751254]
[1739772463558,7.7e-06,2683.8,2683.7,7.31025932]
[1739772464341,7.7e-06,2683.8,2683.7,8.49371825]
[1739772464962,7.7e-06,2683.8,2683.7,3.72619]
[1739772465166,0.5693077,2683.8,2683.7,3.72619]
[1739772465940,7.7e-06,2683.8,2683.7,3.72619]
[1739772468870,7.7e-06,2683.8,2683.6,3.72633]
[1739772469043,7.7e-06,2683.8,2683.7,3.72619]
[1739772471148,7.7e-06,2683.8,2683.7,8.91366922]
[1739772471339,7.7e-06,2683.8,2683.7,9.42641132]
[1739772471540,7.7e-06,2683.8,2683.7,12.42641132]
[1739772476743,7.7e-06,2683.8,2683.7,12.61719833]
[1739772481182,9.49e-06,2684.6,2684.5,3.72508]
[1739772481483,9.49e-06,2684.6,2684.5,11.64141779]
[1739772481686,9.49e-06,2684.7,2684.6,4.27494]
[1739772481892,9.49e-06,2684.7,2684.6,4.31217809]
[1739772482094,9.49e-06,2684.7,2684.6,7.31217809]
[1739772482299,9.49e-06,2685.1,2685.0,0.55]
[1739772482499,9.49e-06,2685.1,2685.0,15.23875988]
[1739772482662,9.49e-06,2685.1,2685.0,15.7546113]
[1739772482864,9.49e-06,2685.1,2685.0,15.20152864]
[1739772483091,9.49e-06,2685.1,2685.0,11.61745932]
[1739772483262,9.49e-06,2685.1,2685.0,12.82043152]
[1739772485097,9.49e-06,2685.1,2685.0,13.57943152]
[1739772485297,9.49e-06,2685.1,2685.0,17.16350084]
[1739772486705,9.49e-06,2685.1,2685.0,17.92119353]
[1739772488112,0.5693,2686.1,2686.0,3.723]
[1739772488481,0.5693,2686.4,2686.3,3.72259]
[1739772489296,0.5693,2686.4,2686.2,7.30678932]
[1739772489496,0.5693,2686.4,2686.3,3.72259]
[1739772489896,0.1484725,2686.5,2686.4,3.72245]
[1739772490584,0.1484725,2686.5,2686.4,8.41257942]
[1739772490772,2.5e-06,2686.5,2686.4,9.13436093]
[1739772491370,2.5e-06,2686.5,2686.4,3.72245]
[1739772491569,2.5e-06,2686.5,2686.3,3.72256]
[1739772491989,2.5e-06,2686.5,2686.2,7.30670932]
[1739772492201,0.5693,2686.4,2686.0,3.72292]
[1739772492707,0.5693,2686.4,2685.8,3.72323]
[1739772492916,0.68228784,2686.3,2685.6,7.30750932]
[1739772493086,0.5693,2686.3,2685.6,7.30750932]
[1739772493278,0.5693,2686.3,2685.8,3.72325]
[1739772493703,0.5693,2686.3,2685.6,3.58406932]
[1739772493877,0.5693,2686.3,2685.4,3.72375]
[1739772494085,0.11292466,2686.2,2685.6,3.72352]
[1739772494290,0.5693,2686.1,2685.6,3.72352]
[1739772494502,0.5693,2686.1,2685.5,3.72369]
[1739772494703,0.5693,2686.1,2685.3,3.58406932]
[1739772494906,0.5693,2686.1,2685.4,3.72375]
[1739772495278,0.5693,2686.1,2685.3,3.58406932]
[1739772495507,0.5693,2686.1,2685.4,3.72371]
[1739772496408,0.5693,2686.1,2685.4,7.44743]
[1739772496711,0.11270812,2686.0,2685.3,3.58406932]
[1739772496882,0.5693,2685.9,2685.3,3.58406932]
[1739772497088,0.5693,2685.9,2685.4,3.72376]
[1739772497293,0.5693,2685.9,2685.2,3.72399]
[1739772497500,0.5693,2685.9,2685.3,3.72396]
[1739772497819,0.5693,2685.9,2685.2,3.72409]
[1739772498224,0.5693,2685.7,2685.0,7.30834932]
[1739772498419,0.5693,2685.7,2685.1,3.72413]
[1739772498627,0.5693,2685.5,2684.6,3.72483]
[1739772498821,0.5693,2685.3,2684.6,7.4497]
[1739772499025,0.5693,2685.3,2684.6,3.72483]
[1739772499383,0.5693,2685.3,2684.4,7.30917932]
[1739772499720,0.5693,2685.3,2684.6,3.72486]
[1739772499931,0.5693,2685.3,2684.6,3.72482]
[1739772500090,0.5693,2685.3,2684.7,3.72473]
[1739772500425,0.5693,2685.3,2684.5,4.45592793]
[1739772500588,0.5693,2685.3,2684.6,3.72491]
[1739772501290,0.5693,2685.3,2684.6,3.72493]
[1739772501802,0.5693,2685.3,2684.5,0.73091793]
[1739772501995,0.5693,2685.3,2684.5,3.72506]
[1739772502198,0.5693,2685.1,2684.5,3.72506]
[1739772502729,0.1108129,2685.0,2684.5,3.72506]
[1739772502932,0.5693,2684.9,2684.1,3.72555]
[1739772503119,0.5693,2684.9,2684.3,3.72533]
[1739772503322,0.1108129,2684.8,2684.3,3.72533]
[1739772503519,0.1108129,2684.8,2684.7,3.72481]
[1739772503692,0.5693,2684.9,2684.7,3.72481]
[1739772503895,0.1108129,2684.8,2684.7,3.72481]
[1739772504095,0.5693,2684.9,2684.7,3.72481]
[1739772504291,0.5693,2684.9,2684.8,3.72467]
[1739772504508,0.275,2685.2,2685.0,3.72427]
[1739772505032,0.5693,2685.6,2684.9,3.72451]
[1739772505230,0.5693,2685.6,2684.7,3.58406932]
[1739772505397,0.8443,2685.6,2685.1,3.72421]
[1739772505792,0.5693,2685.6,2685.3,3.72396]
[1739772505993,0.5693,2685.6,2685.5,3.7237]
[1739772506193,0.5693,2685.6,2685.2,3.72401]
[1739772506940,0.5693,2685.6,2685.0,8.06333684]
[1739772507142,0.5693,2685.6,2685.1,0.80633368]
[1739772507514,0.5693,2685.6,2685.4,3.72383]
[1739772507710,0.5693,2685.6,2685.2,3.72398]
[1739772508434,0.5693,2685.6,2685.3,3.72394]
[1739772508798,0.5693,2685.6,2685.2,3.72411]
[1739772509006,0.5693,2685.6,2685.2,5.06063905]
[1739772509505,0.5693,2685.6,2684.7,8.08118932]
[1739772509700,0.11056914,2685.5,2684.8,3.72465]
[1739772510105,0.11056914,2685.5,2685.0,3.72431]
[1739772510424,0.5693,2685.6,2685.0,3.7243]
[1739772510827,0.11035247,2685.5,2685.0,3.7243]
[1739772511033,0.5693,2685.6,2685.1,3.72421]
[1739772511231,0.5693,2685.6,2685.2,3.72402]
[1739772511414,0.5693,2685.6,2685.4,7.44753]
[1739772511618,0.5693,2685.6,2685.2,3.72403]
[1739772512130,0.5693,2685.6,2685.3,3.7239]
[1739772512332,0.5693,2685.6,2685.1,3.72412]
[1739772512532,0.5693,2685.6,2685.1,4.99935071]
[1739772512934,0.5693,2685.6,2685.2,3.72404]
[1739772513445,0.5693,2685.6,2685.1,4.99935071]
[1739772513446,0.5693,2685.6,2685.3,3.72391]
[1739772513746,0.5693,2685.6,2685.1,4.99939071]
[1739772514242,0.5693,2685.6,2685.1,8.72357071]
[1739772514445,0.5693,2685.6,2685.2,0.87235707]
[1739772514648,0.5693,2685.6,2685.1,3.72412]
[1739772514950,0.5693,2685.6,2685.0,4.27431]
[1739772515457,0.5693,2685.6,2685.1,3.72418]
[1739772515749,0.5693,2685.6,2685.1,3.72413]
[1739772516151,0.5693,2685.6,2684.9,3.72444]
[1739772516352,0.5693,2685.6,2685.0,0.372444]
[1739772517354,0.5693,2685.6,2685.1,3.72425]
[1739772517532,0.5693,2685.6,2685.1,3.72417]
[1739772517729,0.5693,2685.6,2685.0,0.372444]
[1739772518132,0.5693,2685.6,2685.0,4.096744]
[1739772518336,0.5693,2685.6,2685.1,0.7821174]
[1739772519621,0.5693,2685.6,2685.1,4.5063274]
[1739772519932,0.5693,2685.6,2685.2,3.72411]
[1739772520754,0.5693,2685.6,2685.1,3.72422]
[1739772520950,0.5693,2685.6,2685.2,3.72411]
[1739772521122,0.5693,2685.6,2685.2,4.468879]
[1739772521324,0.5693,2685.6,2685.4,3.72383]
[1739772521634,0.5693,2685.9,2685.6,3.72345]
[1739772521838,0.5693,2685.9,2685.4,3.72377]
[1739772522043,0.5693,2685.9,2685.1,0.55]
[1739772522355,0.5693,2685.9,2685.4,7.44753]
[1739772522562,0.5693,2685.9,2685.4,3.72376]
[1739772522730,0.5693,2685.9,2685.4,3.72377]
[1739772522923,0.5693,2685.9,2685.1,0.55]
[1739772523123,0.5693,2685.9,2685.4,3.72377]
[1739772523625,0.5693,2685.9,2685.5,3.72362]
[1739772524441,0.5693,2685.9,2685.3,3.72388]
[1739772524648,0.5693,2685.9,2685.4,3.72383]
[1739772525231,0.5693,2686.2,2685.6,3.72343]
[1739772525431,0.5693,2686.2,2685.6,3.72347]
[1739772525638,0.5693,2686.2,2685.6,4.16925911]
[1739772525941,0.5693,2686.2,2685.7,3.72335]
[1739772526144,0.5693,2686.2,2685.9,3.72311]
[1739772526351,0.5693,2686.2,2685.9,3.72312]
[1739772526660,0.5693,2686.2,2685.7,3.72335]
[1739772526836,0.5693,2686.2,2685.6,0.44578911]
[1739772527031,2.5e-06,2686.5,2685.7,0.8306]
[1739772527245,2.5e-06,2686.5,2685.8,0.03722797]
[1739772527423,0.11143585,2686.4,2686.3,3.72259]
[1739772527624,2.5e-06,2686.5,2686.4,3.72245]
[1739772528024,2.5e-06,2686.5,2686.1,3.72275]
[1739772528481,2.5e-06,2686.5,2686.2,3.72262]
[1739772528639,2.5e-06,2686.5,2686.3,3.72253]
[1739772528959,2.5e-06,2686.5,2686.3,3.72259]
[1739772529659,2.5e-06,2686.5,2686.4,3.72245]
[1739772530420,2.5e-06,2686.5,2686.4,4.32629808]
[1739772532478,2.5e-06,2686.5,2686.2,3.72267]
[1739772532479,0.5693,2686.4,2686.2,3.72267]
[1739772532676,0.5693,2686.4,2686.1,3.72278]
[1739772533415,0.5693,2686.4,2685.8,3.72321]
[1739772533673,0.5693,2686.4,2685.7,4.14029091]
[1739772533874,0.5693,2686.4,2685.5,3.0]
[1739772534076,0.5693,2686.2,2685.4,7.29525863]
[1739772534221,0.8443,2686.2,2685.6,3.72342]
[1739772534884,0.8443,2686.2,2685.8,3.72325]
[1739772535084,0.8443,2686.2,2685.5,3.0]
[1739772535230,0.8443,2686.2,2685.8,3.72319]
[1739772535741,0.8443,2686.2,2685.7,3.72342]
[1739772535742,0.8443,2686.2,2685.7,7.44676]
[1739772535945,0.8443,2686.2,2685.7,3.72334]
[1739772536274,0.8443,2686.2,2685.8,3.72317]
[1739772536430,0.8443,2686.2,2685.9,3.72314]
[1739772536626,0.8443,2686.2,2685.7,3.72334]
[1739772536980,0.8443,2686.2,2685.7,7.44668]
[1739772537162,0.8443,2686.2,2685.7,3.72334]
[1739772537490,0.8443,2686.2,2685.6,0.73226661]
[1739772537491,0.5693,2686.1,2685.6,3.72354]
[1739772537986,0.11159831,2686.0,2685.4,3.72377]
[1739772538127,0.11159831,2686.0,2685.6,3.72348]
[1739772538327,0.38659831,2686.0,2685.9,3.72314]
[1739772539637,0.38659831,2686.0,2685.8,3.72326]
[1739772540192,0.11159831,2686.0,2685.8,3.72326]
[1739772540442,0.5693,2686.1,2685.5,0.372377]
[1739772540647,0.5693,2686.1,2685.6,3.72344]
[1739772540807,0.11181492,2686.0,2685.6,3.72344]
[1739772541146,0.11181492,2686.0,2685.7,3.72333]
[1739772541289,0.11181492,2686.0,2685.6,4.1330017]
[1739772541494,0.11181492,2686.0,2685.9,3.72314]
[1739772541797,0.5693,2686.1,2686.0,3.723]
[1739772542030,0.5693,2686.1,2685.9,3.72302]
[1739772542243,0.5693,2686.1,2685.9,0.744618]
[1739772542802,0.5693,2686.1,2685.6,4.1330517]
[1739772543016,0.5693,2686.1,2685.7,3.72341]
[1739772543221,0.5693,2686.1,2685.9,3.72314]
[1739772543504,0.11181492,2686.0,2685.7,3.72341]
[1739772543750,0.11181492,2686.0,2685.7,7.44675]
[1739772543950,0.5693,2686.1,2685.7,7.44675]
[1739772544251,0.5693,2686.1,2685.6,0.4095817]
[1739772544448,0.5693,2686.1,2685.8,3.72315]
[1739772545654,0.5693,2686.1,2685.8,3.72328]
[1739772546660,0.5693,2686.1,2685.6,4.8659176]
[1739772546661,0.5693,2686.1,2685.6,0.4095817]
[1739772547156,0.11181492,2686.0,2685.6,0.4095817]
[1739772548005,0.11181492,2686.0,2685.3,3.72391]
[1739772548559,0.5693,2685.9,2685.3,3.72391]
[1739772548902,0.5693,2685.8,2685.0,3.72434]
[1739772549106,0.68111492,2685.8,2685.1,3.72419]
[1739772549308,0.68111492,2685.8,2685.2,3.724]
[1739772550053,0.68111492,2685.8,2685.2,3.7241]
[1739772550253,0.68111492,2685.8,2685.5,3.72359]
[1739772550459,0.68111492,2685.8,2685.3,3.72385]
[1739772550755,0.68111492,2685.8,2685.4,3.72383]
[1739772551261,0.68111492,2685.8,2685.3,3.7239]
[1739772551540,0.68111492,2685.8,2685.4,3.72376]
[1739772551763,0.5693,2685.8,2685.6,3.72352]
[1739772551968,0.1113817,2685.7,2685.4,0.744766]
[1739772552248,0.5693,2685.8,2685.2,3.72403]
[1739772552740,0.1113817,2685.7,2685.2,3.72409]
[1739772553107,0.5693,2685.6,2684.6,3.72487]
[1739772553299,0.5693,2685.3,2684.3,3.72529]
[1739772553570,0.5693,2685.3,2684.4,3.72515]
[1739772553735,3.57153863,2685.4,2684.4,3.72515]
[1739772553736,0.5693,2685.1,2684.4,3.72515]
[1739772553945,0.275,2685.0,2684.4,3.72515]
[1739772554238,0.275,2685.0,2684.5,3.72507]
[1739772554401,0.275,2685.0,2684.5,3.72499]
[1739772554606,0.275,2685.0,2684.6,3.72482]
[1739772554913,0.275,2685.0,2684.4,4.5462209]
[1739772555118,0.275,2685.0,2684.5,3.72508]
[1739772555534,0.5693,2684.9,2684.0,3.8005]
[1739772555849,0.5693,2684.9,2684.3,3.72533]
[1739772556034,0.5693,2684.9,2684.3,3.72528]
[1739772556228,0.5693,2684.9,2684.1,0.73720386]
[1739772556543,0.5693,2684.9,2684.2,3.72542]
[1739772556707,0.5693,2684.7,2683.8,3.72597]
[1739772556907,0.5693,2684.7,2683.7,3.57153863]
[1739772556908,0.5693,2684.7,2684.3,3.72524]
[1739772557331,0.11061433,2684.6,2684.3,3.72524]